fUST/lending_fUST_20240705
["ID","MTS","AMOUNT","RATE_DAILY","PERIOD"]
[331192456,1720128658294,-500.0,0.0001452,2]
[331192458,1720128658303,-500.0,0.0001452,2]
[331192460,1720128658314,-500.0,0.0001452,2]
[331192461,1720128658324,-695.14,0.0001452,2]
[331192464,1720128658333,-500.0,0.0001452,2]
[331192466,1720128658343,-167.74705631,0.0001452,2]
[331192468,1720128658352,-500.0,0.0001452,2]
[331192470,1720128658362,-500.0,0.0001452,2]
[331192471,1720128658371,-500.0,0.0001452,2]
[331192473,1720128658380,-7254.05,0.0001452,2]
[331192476,1720128658389,-500.0,0.0001452,2]
[331192478,1720128658399,-596.5,0.0001452,2]
[331192480,1720128658409,-500.0,0.0001452,2]
[331192482,1720128658418,-500.0,0.0001452,2]
[331192483,1720128658427,-500.0,0.0001452,2]
[331192485,1720128658436,-500.0,0.0001452,2]
[331192487,1720128658445,-520.37,0.0001452,2]
[331192489,1720128658454,-2269.97,0.0001452,2]
[331192491,1720128658463,-770.77,0.0001452,2]
[331192493,1720128658472,-1056.77,0.0001452,2]
[331192495,1720128658482,-507.57568741,0.0001452,2]
[331192497,1720128658491,-500.0,0.0001452,2]
[331192499,1720128658499,-500.0,0.0001452,2]
[331192501,1720128658509,-500.0,0.0001452,2]
[331192503,1720128658518,-500.0,0.0001452,2]
[331192505,1720128658528,-3294.46,0.0001452,2]
[331192507,1720128658537,-4170.92,0.0001452,2]
[331192510,1720128658547,-3373.82,0.0001452,2]
[331192511,1720128658555,-500.0,0.0001452,2]
[331192513,1720128658565,-6584.01,0.0001452,2]
[331192516,1720128658574,-4215.51,0.0001452,2]
[331192517,1720128658583,-500.0,0.0001452,2]
[331192519,1720128658592,-360.5115069,0.0001452,2]
[331192521,1720128658601,-500.0,0.0001452,2]
[331192523,1720128658610,-500.0,0.0001452,2]
[331192525,1720128658620,-500.0,0.0001452,2]
[331192527,1720128658629,-500.0,0.0001452,2]
[331192529,1720128658638,-500.0,0.0001452,2]
[331192531,1720128658647,-13448.85,0.0001452,2]
[331192533,1720128658657,-500.0,0.0001452,2]
[331192535,1720128658666,-500.0,0.0001452,2]
[331192537,1720128658675,-500.0,0.0001452,2]
[331192539,1720128658684,-500.0,0.0001452,2]
[331192541,1720128658693,-500.0,0.0001452,2]
[331192543,1720128658702,-500.0,0.0001452,2]
[331192545,1720128658711,-500.0,0.0001452,2]
[331192547,1720128658720,-500.0,0.0001452,2]
[331192549,1720128658730,-500.0,0.0001452,2]
[331192551,1720128658739,-500.0,0.0001452,2]
[331192553,1720128658748,-500.0,0.0001452,2]
[331192555,1720128658757,-500.0,0.0001452,2]
[331192557,1720128658767,-500.0,0.0001452,2]
[331192559,1720128658776,-500.0,0.0001452,2]
[331192561,1720128658785,-500.0,0.00014793,2]
[331192563,1720128658794,-500.0,0.00014793,2]
[331192565,1720128658803,-500.0,0.00014793,2]
[331192567,1720128658813,-500.0,0.00014793,2]
[331192569,1720128658822,-500.0,0.00014793,2]
[331192571,1720128658831,-3838.68,0.00014793,2]
[331192573,1720128658844,-500.0,0.00014793,2]
[331192575,1720128658855,-1401.68714535,0.00014794,4]
[331192577,1720128658864,-500.0,0.00014794,2]
[331192579,1720128658873,-158.32,0.00014794,2]
[331192581,1720128658885,-500.0,0.00014794,2]
[331192583,1720128658895,-500.0,0.00014794,2]
[331192585,1720128658904,-500.0,0.00014794,2]
[331192587,1720128658914,-281.26,0.00014794,2]
[331192589,1720128658923,-500.0,0.00014794,2]
[331192591,1720128658932,-278.17,0.00014794,2]
[331192593,1720128658942,-500.0,0.00014794,2]
[331192595,1720128658951,-461.2323934,0.00014794,2]
[331192597,1720128658960,-500.0,0.00014794,2]
[331192600,1720128658969,-843.86,0.00014794,2]
[331192601,1720128659055,-561.22,0.00014794,2]
[331192602,1720128659065,-588.18,0.00014794,2]
[331192603,1720128659074,-500.0,0.00014794,2]
[331192604,1720128659083,-593.51,0.00014794,2]
[331192605,1720128659092,-626.37,0.00014794,2]
[331192606,1720128659101,-500.0,0.00014794,2]
[331192607,1720128659110,-500.0,0.00014794,2]
[331192608,1720128659120,-500.0,0.00014794,2]
[331192609,1720128659129,-500.0,0.00014794,2]
[331192611,1720128659138,-500.0,0.00014794,2]
[331192613,1720128659147,-500.0,0.00014794,2]
[331192615,1720128659157,-582.35280385,0.00014794,2]
[331192617,1720128659166,-500.0,0.00014794,2]
[331192619,1720128659175,-500.0,0.00014794,2]
[331192621,1720128659185,-500.0,0.00014794,2]
[331192623,1720128659195,-253.95,0.00014794,2]
[331192625,1720128659204,-500.0,0.00014794,2]
[331192627,1720128659213,-500.0,0.00014794,2]
[331192629,1720128659222,-500.0,0.00014794,2]
[331192631,1720128659231,-500.0,0.00014794,2]
[331192633,1720128659240,-500.0,0.00014794,2]
[331192635,1720128659249,-500.0,0.00014794,2]
[331192637,1720128659259,-518.41,0.00014794,2]
[331192639,1720128659268,-500.0,0.00014794,2]
[331192641,1720128659277,-897.98,0.00014794,2]
[331192643,1720128659286,-500.0,0.00014794,2]
[331192645,1720128659295,-500.0,0.00014794,2]
[331192647,1720128659304,-500.0,0.00014794,2]
[331192649,1720128659315,-500.0,0.00014794,2]
[331192650,1720128659324,-500.0,0.00014794,2]
[331192652,1720128659334,-634.01,0.00014794,2]
[331192654,1720128659344,-500.0,0.00014794,2]
[331192656,1720128659353,-703.1,0.00014794,2]
[331192658,1720128659363,-703.1,0.00014794,2]
[331192661,1720128659372,-500.0,0.00014794,2]
[331192663,1720128659381,-505.93781546,0.00014794,2]
[331192665,1720128659390,-500.0,0.00014794,2]
[331192667,1720128659400,-500.0,0.00014794,2]
[331192669,1720128659409,-338.31,0.00014794,2]
[331192671,1720128659418,-1151.83,0.00014794,2]
[331192672,1720128659427,-500.0,0.00014794,2]
[331192674,1720128659436,-500.0,0.00014794,2]
[331192676,1720128659445,-500.0,0.00014794,2]
[331192678,1720128659454,-500.0,0.00014794,2]
[331192680,1720128659463,-610.69,0.00014794,2]
[331192682,1720128659472,-500.0,0.00014794,2]
[331192684,1720128659481,-500.0,0.00014794,2]
[331192686,1720128659490,-500.0,0.00014794,2]
[331192688,1720128659499,-500.0,0.00014794,2]
[331192690,1720128659509,-151.0,0.00014794,2]
[331192692,1720128659518,-151.0,0.00014794,2]
[331192694,1720128659528,-500.0,0.00014794,2]
[331192696,1720128659537,-500.0,0.00014794,2]
[331192698,1720128659546,-500.0,0.00014794,2]
[331192700,1720128659559,-500.0,0.00014794,2]
[331192702,1720128659568,-151.146708,0.00014794,2]
[331192704,1720128659577,-500.0,0.00014794,2]
[331192706,1720128659587,-854.11,0.00014794,2]
[331192708,1720128659595,-500.0,0.00014794,2]
[331192710,1720128659604,-500.0,0.00014794,2]
[331192712,1720128659614,-500.0,0.00014794,2]
[331192715,1720128659629,-1124.24,0.00014794,2]
[331192717,1720128659639,-500.0,0.00014794,2]
[331192719,1720128659649,-500.0,0.00014794,2]
[331192721,1720128659658,-500.0,0.00014794,2]
[331192723,1720128659668,-500.0,0.00014794,2]
[331192725,1720128659679,-500.0,0.00014794,2]
[331192727,1720128659688,-2028.2,0.00014794,2]
[331192729,1720128659697,-500.0,0.00014794,2]
[331192731,1720128659707,-500.0,0.00014794,2]
[331192733,1720128659717,-626.12,0.00014794,2]
[331192735,1720128659726,-500.0,0.00014794,2]
[331192737,1720128659735,-500.0,0.00014794,2]
[331192739,1720128659745,-500.0,0.00014794,2]
[331192741,1720128659754,-643.62,0.00014794,2]
[331192743,1720128659763,-500.0,0.00014794,2]
[331192745,1720128659773,-500.0,0.00014794,2]
[331192747,1720128659783,-500.0,0.00014794,2]
[331192749,1720128659792,-589.77,0.00014794,2]
[331192751,1720128659801,-500.0,0.00014794,2]
[331192753,1720128659810,-6360.79,0.00014794,2]
[331192755,1720128659819,-500.0,0.00014794,2]
[331192757,1720128659829,-500.0,0.00014794,2]
[331192759,1720128659839,-563.83,0.00014794,2]
[331192761,1720128659852,-500.0,0.00014794,2]
[331192763,1720128659861,-512.72904968,0.00014794,2]
[331192766,1720128659870,-500.0,0.00014794,2]
[331192767,1720128659881,-500.0,0.00014794,2]
[331192769,1720128659891,-500.0,0.00014794,2]
[331192771,1720128659900,-627.36491239,0.00014794,2]
[331192773,1720128659909,-500.0,0.00014794,2]
[331192775,1720128659920,-500.0,0.00014794,2]
[331192777,1720128659929,-500.0,0.00014794,2]
[331192779,1720128659938,-500.0,0.00014794,2]
[331192781,1720128659948,-500.0,0.00014794,2]
[331192783,1720128659958,-500.0,0.00014794,2]
[331192785,1720128659967,-500.0,0.00014794,2]
[331192787,1720128659976,-500.0,0.00014794,2]
[331192789,1720128659985,-500.0,0.00014794,2]
[331192791,1720128659994,-823.72,0.00014794,2]
[331192793,1720128660005,-500.0,0.00014794,2]
[331192795,1720128660015,-500.0,0.00014794,2]
[331192797,1720128660024,-500.0,0.00014794,2]
[331192799,1720128660034,-500.0,0.00014794,2]
[331192801,1720128660043,-500.0,0.00014794,2]
[331192803,1720128660054,-500.0,0.00014794,2]
[331192805,1720128660063,-500.0,0.00014794,2]
[331192807,1720128660072,-500.0,0.00014794,2]
[331192809,1720128660083,-500.0,0.00014794,2]
[331192811,1720128660092,-500.0,0.00014794,2]
[331192813,1720128660101,-500.0,0.00014794,2]
[331192815,1720128660110,-500.0,0.00014794,2]
[331192817,1720128660119,-500.0,0.00014794,2]
[331192819,1720128660130,-500.0,0.00014794,2]
[331192821,1720128660139,-500.0,0.00014794,2]
[331192823,1720128660148,-151.0,0.00014794,2]
[331192825,1720128660158,-500.0,0.00014794,2]
[331192827,1720128660167,-500.0,0.00014794,2]
[331192829,1720128660176,-500.0,0.00014794,2]
[331192831,1720128660186,-288.75,0.00014794,2]
[331192833,1720128660196,-1612.74,0.00014794,2]
[331192835,1720128660205,-500.0,0.00014794,2]
[331192837,1720128660215,-500.0,0.00014794,2]
[331192839,1720128660225,-500.0,0.00014794,2]
[331192841,1720128660235,-500.0,0.00014794,2]
[331192843,1720128660244,-500.0,0.00014794,2]
[331192845,1720128660254,-500.0,0.00014794,2]
[331192847,1720128660263,-502.05741685,0.00014794,2]
[331192849,1720128660273,-500.0,0.00014794,2]
[331192851,1720128660283,-500.0,0.00014794,2]
[331192853,1720128660293,-2764.04,0.00014794,2]
[331192855,1720128660302,-500.0,0.00014794,2]
[331192857,1720128660313,-500.0,0.00014794,2]
[331192859,1720128660323,-217.347344,0.00014794,2]
[331192861,1720128660334,-500.0,0.00014794,2]
[331192863,1720128660343,-151.0,0.00014794,2]
[331192865,1720128660353,-217.347344,0.00014794,2]
[331192867,1720128660362,-500.0,0.00014794,2]
[331192869,1720128660372,-513.04,0.00014794,2]
[331192871,1720128660381,-500.0,0.00014794,2]
[331192873,1720128660390,-151.0,0.00014794,2]
[331192883,1720128660473,-1045.8,0.00014794,2]
[331192885,1720128660483,-500.0,0.00014794,2]
[331192887,1720128660493,-500.0,0.00014794,2]
[331192889,1720128660502,-1125.77,0.00014794,2]
[331192891,1720128660511,-534.61,0.00014794,2]
[331192893,1720128660520,-500.0,0.00014794,2]
[331192895,1720128660530,-1272.93,0.00014794,2]
[331192897,1720128660540,-5083.19,0.00014794,2]
[331192899,1720128660549,-500.0,0.00014794,2]
[331192901,1720128660559,-500.0,0.00014794,2]
[331192903,1720128660568,-520.48664714,0.00014794,2]
[331192905,1720128660578,-226.635779,0.00014794,2]
[331192908,1720128660587,-500.0,0.00014794,2]
[331192909,1720128660596,-500.0,0.00014794,2]
[331192911,1720128660605,-226.635779,0.00014794,2]
[331192913,1720128660617,-500.0,0.00014794,2]
[331192915,1720128660626,-500.0,0.00014794,2]
[331192917,1720128660635,-500.0,0.00014794,2]
[331192919,1720128660644,-675.37,0.00014794,2]
[331192921,1720128660653,-500.0,0.00014794,2]
[331192923,1720128660662,-500.0,0.00014794,2]
[331192925,1720128660671,-500.0,0.00014794,2]
[331192927,1720128660680,-500.0,0.00014794,2]
[331192929,1720128660689,-500.0,0.00014794,2]
[331192931,1720128660698,-500.0,0.00014794,2]
[331192933,1720128660707,-500.0,0.00014794,2]
[331192935,1720128660716,-500.0,0.00014794,2]
[331192937,1720128660726,-688.59,0.00014794,2]
[331192939,1720128660735,-500.0,0.00014794,2]
[331192941,1720128660744,-603.70342533,0.00014794,2]
[331192943,1720128660754,-500.0,0.00014794,2]
[331192945,1720128660764,-500.0,0.00014794,2]
[331192947,1720128660774,-1791.43,0.00014794,2]
[331192949,1720128660783,-500.0,0.00014794,2]
[331192951,1720128660792,-594.24,0.00014794,2]
[331192953,1720128660802,-500.0,0.00014794,2]
[331192955,1720128660810,-500.0,0.00014794,2]
[331192957,1720128660819,-500.0,0.00014794,2]
[331192959,1720128660829,-500.0,0.00014794,2]
[331192961,1720128660838,-500.0,0.00014794,2]
[331192963,1720128660853,-500.0,0.00014794,2]
[331192965,1720128660862,-500.0,0.00014794,2]
[331192967,1720128660871,-500.0,0.00014794,2]
[331192969,1720128660881,-2308.28,0.00014794,2]
[331192971,1720128660890,-500.0,0.00014794,2]
[331192973,1720128660899,-500.0,0.00014794,2]
[331192975,1720128660908,-537.27,0.00014794,2]
[331192977,1720128660919,-500.0,0.00014794,2]
[331192979,1720128660928,-500.0,0.00014794,2]
[331192981,1720128660936,-1192.06,0.00014794,2]
[331192983,1720128660945,-500.0,0.00014794,2]
[331192985,1720128660955,-500.0,0.00014794,2]
[331192987,1720128660964,-500.0,0.00014794,2]
[331192989,1720128660974,-695.14,0.00014794,2]
[331192991,1720128660983,-500.0,0.00014794,2]
[331192993,1720128660992,-500.0,0.00014794,2]
[331192995,1720128661001,-7254.05,0.00014794,2]
[331192997,1720128661011,-500.0,0.00014794,2]
[331192999,1720128661021,-503.60821617,0.00014794,2]
[331193001,1720128661031,-500.0,0.00014794,2]
[331193003,1720128661040,-500.0,0.00014794,2]
[331193005,1720128661049,-500.0,0.00014794,2]
[331193007,1720128661058,-520.37,0.00014794,2]
[331193009,1720128661067,-2269.97,0.00014794,2]
[331193011,1720128661076,-770.77,0.00014794,2]
[331193013,1720128661085,-1056.77,0.00014794,2]
[331193015,1720128661094,-500.0,0.00014794,2]
[331193016,1720128661103,-500.0,0.00014794,2]
[331193018,1720128661112,-500.0,0.00014794,2]
[331193021,1720128661121,-3294.46,0.00014794,2]
[331193023,1720128661131,-4170.92,0.00014794,2]
[331193025,1720128661141,-3373.82,0.00014794,2]
[331193026,1720128661150,-500.0,0.00014794,2]
[331193029,1720128661159,-6584.01,0.00014794,2]
[331193030,1720128661168,-4215.51,0.00014794,2]
[331193032,1720128661178,-500.0,0.00014794,2]
[331193035,1720128661187,-500.0,0.00014794,2]
[331193036,1720128661196,-500.0,0.00014794,2]
[331193038,1720128661205,-500.0,0.00014794,2]
[331193040,1720128661214,-500.0,0.00014794,2]
[331193043,1720128661223,-500.0,0.00014794,2]
[331193045,1720128661233,-13448.85,0.00014794,2]
[331193047,1720128661243,-500.0,0.00014794,2]
[331193049,1720128661251,-500.0,0.00014794,2]
[331193050,1720128661261,-500.0,0.00014794,2]
[331193052,1720128661270,-500.0,0.00014794,2]
[331193054,1720128661279,-500.0,0.00014794,2]
[331193056,1720128661288,-500.0,0.00014794,2]
[331193058,1720128661298,-500.0,0.00014794,2]
[331193060,1720128661307,-500.0,0.00014794,2]
[331193062,1720128661317,-500.0,0.00014794,2]
[331193064,1720128661327,-500.0,0.00014794,2]
[331193066,1720128661336,-500.0,0.00014794,2]
[331193068,1720128661346,-500.0,0.00014794,2]
[331193070,1720128661355,-500.0,0.00014794,2]
[331193072,1720128661365,-500.0,0.00014794,2]
[331193074,1720128661374,-11029.28750384,0.00014998,2]
[331193076,1720128661383,-6076.9012323,0.00014998,2]
[331193078,1720128661392,-500.0,0.00014998,2]
[331193080,1720128661401,-504.74927562,0.00014998,2]
[331193082,1720128661410,-276.126514,0.00014998,2]
[331193084,1720128661419,-276.126514,0.00014998,2]
[331193086,1720128661428,-151.0,0.00014998,2]
[331193088,1720128661437,-3838.68,0.00014998,2]
[331193090,1720128661446,-3838.68,0.00014998,2]
[331193092,1720128661456,-3838.68,0.00014998,2]
[331193094,1720128661465,-3838.68,0.00014998,2]
[331193096,1720128661475,-500.0,0.00014998,2]
[331193098,1720128661483,-500.0,0.00014998,2]
[331193100,1720128661493,-500.0,0.00014998,2]
[331193102,1720128661502,-500.0,0.00014998,2]
[331193104,1720128661511,-1916.29526789,0.00014999,2]
[331193106,1720128661520,-4710.72024946,0.00014999,2]
[331193108,1720128661530,-2132.45671248,0.00014999,2]
[331193110,1720128661539,-1463.29635585,0.00014999,2]
[331193112,1720128661548,-3137.77932824,0.00014999,2]
[331193114,1720128661558,-3078.21561801,0.00014999,2]
[331193116,1720128661568,-1500.0,0.00014999,2]
[331193118,1720128661577,-1434.44237247,0.00014999,2]
[331193120,1720128661586,-2118.3618334,0.00014999,2]
[331193122,1720128661596,-2126.43441341,0.00014999,2]
[331193124,1720128661605,-1634.59229075,0.00014999,2]
[331193126,1720128661614,-151.0,0.00014999,2]
[331193128,1720128661624,-151.0,0.00014999,2]
[331193130,1720128661634,-151.0,0.00014999,2]
[331193132,1720128661643,-151.0,0.00014999,2]
[331193134,1720128661652,-1039.06688618,0.00015,2]
[331193136,1720128661662,-808.0087546,0.00015,2]
[331193138,1720128661672,-937.8,0.00015,2]
[331193140,1720128661682,-2420.55776569,0.00015,2]
[331193150,1720128661760,-1104.60661146,0.00015,2]
[331193152,1720128661771,-948.84245203,0.00015,2]
[331193154,1720128661783,-150.0,0.00015059,2]
[331193156,1720128661792,-3838.68,0.00015066,2]
[331193158,1720128661801,-151.0,0.00015066,2]
[331193160,1720128661811,-151.0,0.00015066,2]
[331193162,1720128661819,-226.635779,0.00015066,2]
[331193164,1720128661829,-226.635779,0.00015066,2]
[331193166,1720128661841,-500.0,0.00015066,2]
[331193168,1720128661853,-500.0,0.00015068,2]
[331193170,1720128661863,-328.84,0.00015068,2]
[331193172,1720128661872,-500.0,0.00015068,2]
[331193174,1720128661884,-577.34,0.00015068,2]
[331193176,1720128661893,-500.0,0.00015068,2]
[331193178,1720128661903,-500.0,0.00015068,2]
[331193180,1720128661912,-500.0,0.00015068,2]
[331193182,1720128661921,-843.86,0.00015068,2]
[331193184,1720128661930,-394.077144,0.00015068,2]
[331193186,1720128661940,-500.0,0.00015068,2]
[331193188,1720128661950,-500.0,0.00015068,2]
[331193190,1720128661959,-500.0,0.00015068,2]
[331193192,1720128661969,-500.0,0.00015068,2]
[331193194,1720128661978,-500.0,0.00015068,2]
[331193196,1720128661988,-500.0,0.00015068,2]
[331193198,1720128661997,-500.0,0.00015068,2]
[331193200,1720128662007,-647.57,0.00015068,2]
[331193202,1720128662016,-500.0,0.00015068,2]
[331193203,1720128662026,-568.6,0.00015068,2]
[331193204,1720128662036,-178.61289237,0.00015068,2]
[331193205,1720128662047,-500.0,0.00015068,2]
[331193206,1720128662057,-518.41,0.00015068,2]
[331193207,1720128662067,-897.98,0.00015068,2]
[331193208,1720128662076,-500.0,0.00015068,2]
[331193209,1720128662086,-500.0,0.00015068,2]
[331193210,1720128662095,-500.0,0.00015068,2]
[331193211,1720128662104,-500.0,0.00015068,2]
[331193212,1720128662114,-500.0,0.00015068,2]
[331193213,1720128662124,-703.1,0.00015068,2]
[331193214,1720128662133,-703.1,0.00015068,2]
[331193215,1720128662142,-500.0,0.00015068,2]
[331193217,1720128662152,-500.0,0.00015068,2]
[331193219,1720128662163,-521.38907576,0.00015068,2]
[331193221,1720128662172,-1151.83,0.00015068,2]
[331193223,1720128662182,-500.0,0.00015068,2]
[331193225,1720128662191,-500.0,0.00015068,2]
[331193227,1720128662201,-500.0,0.00015068,2]
[331193229,1720128662211,-626.47724902,0.00015068,2]
[331193231,1720128662220,-500.0,0.00015068,2]
[331193233,1720128662230,-500.0,0.00015068,2]
[331193235,1720128662240,-151.0,0.00015068,2]
[331193237,1720128662249,-151.0,0.00015068,2]
[331193239,1720128662259,-500.0,0.00015068,2]
[331193241,1720128662268,-500.0,0.00015068,2]
[331193243,1720128662277,-500.0,0.00015068,2]
[331193245,1720128662287,-500.0,0.00015068,2]
[331193247,1720128662296,-854.11,0.00015068,2]
[331193249,1720128662306,-504.30890535,0.00015068,2]
[331193251,1720128662316,-500.0,0.00015068,2]
[331193253,1720128662326,-500.0,0.00015068,2]
[331193255,1720128662335,-1124.24,0.00015068,2]
[331193257,1720128662345,-500.0,0.00015068,2]
[331193260,1720128662355,-500.0,0.00015068,2]
[331193261,1720128662364,-2028.2,0.00015068,2]
[331193262,1720128662374,-500.0,0.00015068,2]
[331193263,1720128662383,-320.25,0.00015068,2]
[331193264,1720128662394,-626.12,0.00015068,2]
[331193265,1720128662404,-500.0,0.00015068,2]
[331193266,1720128662414,-500.0,0.00015068,2]
[331193267,1720128662424,-500.0,0.00015068,2]
[331193268,1720128662434,-643.62,0.00015068,2]
[331193269,1720128662444,-500.0,0.00015068,2]
[331193270,1720128662455,-500.0,0.00015068,2]
[331193271,1720128662466,-500.0,0.00015068,2]
[331193272,1720128662476,-589.77,0.00015068,2]
[331193273,1720128662486,-6360.79,0.00015068,2]
[331193274,1720128662496,-500.0,0.00015068,2]
[331193275,1720128662506,-500.0,0.00015068,2]
[331193276,1720128662515,-563.83,0.00015068,2]
[331193277,1720128662525,-500.0,0.00015068,2]
[331193278,1720128662538,-500.0,0.00015068,2]
[331193279,1720128662548,-500.0,0.00015068,2]
[331193280,1720128662557,-500.0,0.00015068,2]
[331193281,1720128662567,-292.65166966,0.00015068,2]
[331193282,1720128662576,-500.0,0.00015068,2]
[331193283,1720128662586,-500.0,0.00015068,2]
[331193284,1720128662596,-500.0,0.00015068,2]
[331193285,1720128662605,-500.0,0.00015068,2]
[331193286,1720128662615,-500.0,0.00015068,2]
[331193287,1720128662624,-500.0,0.00015068,2]
[331193288,1720128662633,-500.0,0.00015068,2]
[331193289,1720128662643,-823.72,0.00015068,2]
[331193290,1720128662652,-500.0,0.00015068,2]
[331193291,1720128662662,-500.0,0.00015068,2]
[331193292,1720128662671,-500.0,0.00015068,2]
[331193293,1720128662680,-500.0,0.00015068,2]
[331193294,1720128662689,-500.0,0.00015068,2]
[331193296,1720128662698,-500.0,0.00015068,2]
[331193298,1720128662707,-646.4,0.00015068,2]
[331193300,1720128662716,-500.0,0.00015068,2]
[331193302,1720128662725,-503.94876905,0.00015068,2]
[331193304,1720128662734,-500.0,0.00015068,2]
[331193306,1720128662744,-500.0,0.00015068,2]
[331193308,1720128662753,-500.0,0.00015068,2]
[331193309,1720128662763,-618.59507928,0.00015068,2]
[331193311,1720128662772,-1612.74,0.00015068,2]
[331193313,1720128662783,-500.0,0.00015068,2]
[331193315,1720128662792,-500.0,0.00015068,2]
[331193317,1720128662801,-500.0,0.00015068,2]
[331193319,1720128662811,-500.0,0.00015068,2]
[331193321,1720128662821,-500.0,0.00015068,2]
[331193323,1720128662830,-500.0,0.00015068,2]
[331193325,1720128662839,-500.0,0.00015068,2]
[331193327,1720128662853,-2764.04,0.00015068,2]
[331193329,1720128662863,-500.0,0.00015068,2]
[331193331,1720128662872,-500.0,0.00015068,2]
[331193333,1720128662881,-217.347344,0.00015068,2]
[331193334,1720128662890,-217.347344,0.00015068,2]
[331193336,1720128662899,-500.0,0.00015068,2]
[331193338,1720128662909,-500.0,0.00015068,2]
[331193340,1720128662918,-513.04,0.00015068,2]
[331193350,1720128662998,-1045.8,0.00015068,2]
[331193352,1720128663008,-500.0,0.00015068,2]
[331193354,1720128663017,-500.0,0.00015068,2]
[331193356,1720128663026,-1125.77,0.00015068,2]
[331193358,1720128663035,-534.61,0.00015068,2]
[331193360,1720128663044,-500.0,0.00015068,2]
[331193361,1720128663054,-1272.93,0.00015068,2]
[331193363,1720128663063,-5083.19,0.00015068,2]
[331193365,1720128663072,-500.0,0.00015068,2]
[331193367,1720128663081,-500.0,0.00015068,2]
[331193369,1720128663091,-500.0,0.00015068,2]
[331193372,1720128663101,-500.0,0.00015068,2]
[331193373,1720128663110,-500.0,0.00015068,2]
[331193375,1720128663119,-675.37,0.00015068,2]
[331193378,1720128663128,-500.0,0.00015068,2]
[331193379,1720128663137,-500.0,0.00015068,2]
[331193382,1720128663146,-500.0,0.00015068,2]
[331193383,1720128663155,-500.0,0.00015068,2]
[331193385,1720128663165,-500.0,0.00015068,2]
[331193387,1720128663174,-500.0,0.00015068,2]
[331193389,1720128663184,-500.0,0.00015068,2]
[331193391,1720128663194,-500.0,0.00015068,2]
[331193394,1720128663204,-688.59,0.00015068,2]
[331193396,1720128663213,-500.0,0.00015068,2]
[331193397,1720128663223,-500.0,0.00015068,2]
[331193399,1720128663232,-500.0,0.00015068,2]
[331193401,1720128663241,-1791.43,0.00015068,2]
[331193403,1720128663251,-500.0,0.00015068,2]
[331193405,1720128663260,-594.24,0.00015068,2]
[331193407,1720128663269,-514.74497265,0.00015068,2]
[331193409,1720128663279,-500.0,0.00015068,2]
[331193411,1720128663289,-500.0,0.00015068,2]
[331193413,1720128663298,-500.0,0.00015068,2]
[331193415,1720128663307,-193.91698171,0.00015068,2]
[331193417,1720128663319,-500.0,0.00015068,2]
[331193419,1720128663329,-500.0,0.00015068,2]